[Event "Titled Tuesday Blitz March 08 Early 2022"]
[White "Sovetbekova, Nurai"]
[Black "Horak, Martin"]
[WhiteFideId "13801910"]
[BlackFideId "367095"]
[WhiteElo "1538"]
[BlackElo "1997"]
[Result "0-1"]
[Round "10"]
[TimeControl "180+1"]
[Date "2022.03.09"]
[WhiteClock "0:00:03"]
[BlackClock "0:00:04"]

1. d4 {[%clk 0:03:00]}  Nf6 {[%clk 0:02:58]} 2. c4 {[%clk 0:03:00]}  b6 {[%clk 0:02:58]} 3. d5 {[%clk 0:02:50]}  e5 {[%clk 0:02:49]} 4. Nc3 {[%clk 0:02:40]}  Bb4 {[%clk 0:02:43]} 5. Bd2 {[%clk 0:02:35]}  O-O {[%clk 0:02:40]} 6. Qc2 {[%clk 0:02:26]}  Na6 {[%clk 0:02:24]} 7. a3 {[%clk 0:02:17]}  Bxc3 {[%clk 0:02:23]} 8. Bxc3 {[%clk 0:02:16]}  d6 {[%clk 0:02:09]} 9. b4 {[%clk 0:02:08]}  e4 {[%clk 0:02:02]} 10. e3 {[%clk 0:01:57]}  Re8 {[%clk 0:01:58]} 11. Ne2 {[%clk 0:01:52]}  Nb8 {[%clk 0:01:56]} 12. Ng3 {[%clk 0:01:28]}  a5 {[%clk 0:01:43]} 13. Be2 {[%clk 0:01:22]}  axb4 {[%clk 0:01:31]} 14. axb4 {[%clk 0:01:23]}  Rxa1+ {[%clk 0:01:31]} 15. Bxa1 {[%clk 0:01:23]}  Na6 {[%clk 0:01:32]} 16. Qc3 {[%clk 0:01:03]}  Qe7 {[%clk 0:01:01]} 17. O-O {[%clk 0:00:57]}  Nb8 {[%clk 0:01:00]} 18. Rc1 {[%clk 0:00:35]}  Nbd7 {[%clk 0:01:00]} 19. Qc2 {[%clk 0:00:19]}  h6 {[%clk 0:00:51]} 20. Nf5 {[%clk 0:00:19]}  Qf8 {[%clk 0:00:45]} 21. Bd4 {[%clk 0:00:18]}  Ne5 {[%clk 0:00:44]} 22. Ng3 {[%clk 0:00:16]}  Ng6 {[%clk 0:00:41]} 23. Qd2 {[%clk 0:00:12]}  Ne5 {[%clk 0:00:37]} 24. c5 {[%clk 0:00:10]}  bxc5 {[%clk 0:00:34]} 25. bxc5 {[%clk 0:00:10]}  Qe7 {[%clk 0:00:22]} 26. Qc2 {[%clk 0:00:05]}  Ng6 {[%clk 0:00:10]} 27. Bb5 {[%clk 0:00:04]}  Bd7 {[%clk 0:00:09]} 28. Nf5 {[%clk 0:00:02]}  Bxf5 {[%clk 0:00:07]} 29. Bxe8 {[%clk 0:00:03]}  Nxe8 {[%clk 0:00:07]} 30. cxd6 {[%clk 0:00:04]}  cxd6 {[%clk 0:00:08]} 31. Qc6 {[%clk 0:00:04]}  Kh7 {[%clk 0:00:07]} 32. Qa8 {[%clk 0:00:02]}  Nf6 {[%clk 0:00:06]} 33. Qc6 {[%clk 0:00:02]}  h5 {[%clk 0:00:05]} 34. Bb2 {[%clk 0:00:03]}  h4 {[%clk 0:00:05]} 35. Ba3 {[%clk 0:00:03]}  Ne8 {[%clk 0:00:03]} 36. Rb1 {[%clk 0:00:03]}  Qg5 {[%clk 0:00:03]} 37. Bxd6 {[%clk 0:00:02]}  h3 {[%clk 0:00:03]} 38. g3 {[%clk 0:00:02]}  Qg4 {[%clk 0:00:03]} 39. Qc1 {[%clk 0:00:01]}  Qf3 {[%clk 0:00:03]} 40. Qd1 {[%clk 0:00:02]}  Nxd6 {[%clk 0:00:03]} 41. Qxf3 {[%clk 0:00:02]}  exf3 {[%clk 0:00:04]} 42. Rd1 {[%clk 0:00:02]}  Be4 {[%clk 0:00:04]} 43. Kf1 {[%clk 0:00:02]}  f5 {[%clk 0:00:04]} 44. Ke1 {[%clk 0:00:03]}  Ne5 {[%clk 0:00:04]} 45. Rd4 {[%clk 0:00:03]}  Kg6 {[%clk 0:00:03]} 46. Kd2 {[%clk 0:00:03]}  Kf6 {[%clk 0:00:03]} 47. Kc3 {[%clk 0:00:03]}  Nb5+ {[%clk 0:00:04]} 48. Kb4 {[%clk 0:00:02]}  Nxd4 {[%clk 0:00:05]} 49. exd4 {[%clk 0:00:03]}  Nd7 {[%clk 0:00:05]} 50. Kb5 {[%clk 0:00:03]}  Bxd5 {[%clk 0:00:04]} 0-1


[Site "https://www.chess.com"]

[Event "Titled Tuesday Blitz March 08 Early 2022"]
[White "Spitzl, Vinzent"]
[Black "Baker, Chris W"]
[WhiteFideId "12901253"]
[BlackFideId "401676"]
[WhiteElo "2160"]
[BlackElo "2262"]
[Result "1-0"]
[Round "10"]
[TimeControl "180+1"]
[Date "2022.03.09"]
[WhiteClock "0:00:16"]
[BlackClock "0:00:15"]

1. e4 {[%clk 0:03:00]}  e5 {[%clk 0:02:59]} 2. Nf3 {[%clk 0:02:59]}  Nc6 {[%clk 0:02:59]} 3. Bc4 {[%clk 0:02:59]}  Bc5 {[%clk 0:02:58]} 4. c3 {[%clk 0:02:59]}  Nf6 {[%clk 0:02:57]} 5. d4 {[%clk 0:03:00]}  exd4 {[%clk 0:02:56]} 6. cxd4 {[%clk 0:03:01]}  Bb4+ {[%clk 0:02:55]} 7. Nc3 {[%clk 0:03:01]}  d5 {[%clk 0:02:49]} 8. exd5 {[%clk 0:02:57]}  Nxd5 {[%clk 0:02:45]} 9. O-O {[%clk 0:02:54]}  Bxc3 {[%clk 0:02:40]} 10. bxc3 {[%clk 0:02:50]}  O-O {[%clk 0:02:39]} 11. Re1 {[%clk 0:02:44]}  Bg4 {[%clk 0:02:33]} 12. Ba3 {[%clk 0:02:41]}  Nxc3 {[%clk 0:02:23]} 13. Qb3 {[%clk 0:02:17]}  Bxf3 {[%clk 0:01:58]} 14. Qxc3 {[%clk 0:02:16]}  Bd5 {[%clk 0:01:54]} 15. Bxf8 {[%clk 0:02:11]}  Kxf8 {[%clk 0:01:53]} 16. Bxd5 {[%clk 0:02:10]}  Qxd5 {[%clk 0:01:52]} 17. Qc5+ {[%clk 0:02:02]}  Qxc5 {[%clk 0:01:52]} 18. dxc5 {[%clk 0:02:02]}  Rd8 {[%clk 0:01:49]} 19. Rab1 {[%clk 0:01:54]}  b6 {[%clk 0:01:35]} 20. Red1 {[%clk 0:01:42]}  Nd4 {[%clk 0:01:23]} 21. cxb6 {[%clk 0:01:31]}  axb6 {[%clk 0:01:21]} 22. Kf1 {[%clk 0:01:31]}  Ke7 {[%clk 0:01:12]} 23. Rb4 {[%clk 0:01:27]}  Ne6 {[%clk 0:01:09]} 24. Rxd8 {[%clk 0:01:27]}  Kxd8 {[%clk 0:01:07]} 25. Ke2 {[%clk 0:01:27]}  Kd7 {[%clk 0:01:07]} 26. Ke3 {[%clk 0:01:20]}  Kd6 {[%clk 0:01:06]} 27. h4 {[%clk 0:01:02]}  h5 {[%clk 0:00:58]} 28. Rb1 {[%clk 0:00:48]}  g6 {[%clk 0:00:51]} 29. f3 {[%clk 0:00:45]}  Nc5 {[%clk 0:00:49]} 30. g4 {[%clk 0:00:43]}  hxg4 {[%clk 0:00:44]} 31. fxg4 {[%clk 0:00:43]}  Ke6 {[%clk 0:00:41]} 32. Kf4 {[%clk 0:00:38]}  Nd7 {[%clk 0:00:37]} 33. Kg5 {[%clk 0:00:32]}  Ne5 {[%clk 0:00:35]} 34. h5 {[%clk 0:00:27]}  f6+ {[%clk 0:00:30]} 35. Kh6 {[%clk 0:00:21]}  gxh5 {[%clk 0:00:25]} 36. gxh5 {[%clk 0:00:20]}  Nf7+ {[%clk 0:00:24]} 37. Kg7 {[%clk 0:00:19]}  f5 {[%clk 0:00:16]} 38. Re1+ {[%clk 0:00:19]}  Ne5 {[%clk 0:00:15]} 39. h6 {[%clk 0:00:16]} 1-0


[Site "https://www.chess.com"]

[Event "Titled Tuesday Blitz March 08 Early 2022"]
[White "Stefanov, Plamen"]
[Black "Khamdamova, Afruza"]
[WhiteFideId "2900980"]
[BlackFideId "14210444"]
[WhiteElo "2137"]
[BlackElo "1660"]
[Result "1-0"]
[Round "10"]
[TimeControl "180+1"]
[Date "2022.03.09"]
[WhiteClock "0:00:10"]
[BlackClock "0:00:01"]

1. e4 {[%clk 0:03:00]}  e5 {[%clk 0:02:59]} 2. Nf3 {[%clk 0:03:00]}  Nf6 {[%clk 0:02:59]} 3. Nxe5 {[%clk 0:02:55]}  d6 {[%clk 0:02:58]} 4. Nd3 {[%clk 0:02:53]}  Nxe4 {[%clk 0:02:58]} 5. Qe2 {[%clk 0:02:52]}  Qe7 {[%clk 0:02:57]} 6. Nf4 {[%clk 0:02:52]}  c6 {[%clk 0:02:57]} 7. d3 {[%clk 0:02:47]}  Nf6 {[%clk 0:02:56]} 8. Nc3 {[%clk 0:02:46]}  d5 {[%clk 0:02:54]} 9. Be3 {[%clk 0:02:41]}  Bf5 {[%clk 0:02:41]} 10. O-O-O {[%clk 0:02:38]}  Nbd7 {[%clk 0:02:40]} 11. h3 {[%clk 0:02:32]}  h5 {[%clk 0:02:21]} 12. g3 {[%clk 0:02:19]}  c5 {[%clk 0:02:15]} 13. Ncxd5 {[%clk 0:02:11]}  Nxd5 {[%clk 0:02:08]} 14. Nxd5 {[%clk 0:02:11]}  Qe5 {[%clk 0:02:07]} 15. Nc7+ {[%clk 0:02:00]}  Qxc7 {[%clk 0:01:51]} 16. Bf4+ {[%clk 0:02:00]}  Ne5 {[%clk 0:01:50]} 17. Bxe5 {[%clk 0:02:00]}  Qe7 {[%clk 0:01:50]} 18. d4 {[%clk 0:01:46]}  O-O-O {[%clk 0:01:43]} 19. Bg2 {[%clk 0:01:36]}  f6 {[%clk 0:01:33]} 20. Qf3 {[%clk 0:01:36]}  Be6 {[%clk 0:01:19]} 21. d5 {[%clk 0:01:33]}  Bf7 {[%clk 0:01:00]} 22. Bf4 {[%clk 0:01:30]}  g5 {[%clk 0:00:52]} 23. Be3 {[%clk 0:01:16]}  Bg7 {[%clk 0:00:48]} 24. d6 {[%clk 0:01:08]}  Qd7 {[%clk 0:00:47]} 25. Bxc5 {[%clk 0:01:06]}  Kb8 {[%clk 0:00:46]} 26. Qa3 {[%clk 0:01:01]}  a6 {[%clk 0:00:36]} 27. Bb6 {[%clk 0:00:44]}  Rc8 {[%clk 0:00:21]} 28. Bc7+ {[%clk 0:00:30]}  Rxc7 {[%clk 0:00:18]} 29. dxc7+ {[%clk 0:00:30]}  Qxc7 {[%clk 0:00:18]} 30. Rhe1 {[%clk 0:00:25]}  Rc8 {[%clk 0:00:16]} 31. c3 {[%clk 0:00:24]}  Bf8 {[%clk 0:00:12]} 32. Qa4 {[%clk 0:00:20]}  Bg6 {[%clk 0:00:10]} 33. Qd4 {[%clk 0:00:17]}  Bc5 {[%clk 0:00:09]} 34. Qd7 {[%clk 0:00:16]}  Bxf2 {[%clk 0:00:06]} 35. Re7 {[%clk 0:00:16]}  Bxg3 {[%clk 0:00:04]} 36. Qe6 {[%clk 0:00:12]}  Bf4+ {[%clk 0:00:03]} 37. Rd2 {[%clk 0:00:10]}  Bxd2+ {[%clk 0:00:03]} 38. Kxd2 {[%clk 0:00:10]}  Qf4+ {[%clk 0:00:03]} 39. Ke1 {[%clk 0:00:09]}  Qc1+ {[%clk 0:00:03]} 40. Kf2 {[%clk 0:00:10]}  Qd2+ {[%clk 0:00:02]} 41. Kg1 {[%clk 0:00:10]}  Qc1+ {[%clk 0:00:02]} 42. Kh2 {[%clk 0:00:10]}  Qf4+ {[%clk 0:00:01]} 43. Kg1 {[%clk 0:00:10]} 1-0


[Site "https://www.chess.com"]

[Event "Titled Tuesday Blitz March 08 Early 2022"]
[White "Taichman, Ori"]
[Black "Wagner, Dennis"]
[WhiteFideId "2804069"]
[BlackFideId "24650684"]
[WhiteElo "2227"]
[BlackElo "2355"]
[Result "0-1"]
[Round "10"]
[TimeControl "180+1"]
[Date "2022.03.08"]
[WhiteClock "0:00:14"]
[BlackClock "0:00:39"]

1. e4 {[%clk 0:03:00]}  c5 {[%clk 0:02:59]} 2. b3 {[%clk 0:03:00]}  g6 {[%clk 0:02:57]} 3. Bb2 {[%clk 0:02:59]}  Nf6 {[%clk 0:02:58]} 4. Qf3 {[%clk 0:03:00]}  d6 {[%clk 0:02:48]} 5. Nc3 {[%clk 0:02:59]}  Bg7 {[%clk 0:02:47]} 6. Nd5 {[%clk 0:02:59]}  O-O {[%clk 0:02:47]} 7. Nxf6+ {[%clk 0:02:58]}  exf6 {[%clk 0:02:43]} 8. O-O-O {[%clk 0:02:58]}  Nc6 {[%clk 0:02:40]} 9. h4 {[%clk 0:02:56]}  h5 {[%clk 0:02:39]} 10. Qg3 {[%clk 0:02:53]}  Qa5 {[%clk 0:02:05]} 11. Kb1 {[%clk 0:02:52]}  Rd8 {[%clk 0:02:03]} 12. Be2 {[%clk 0:02:38]}  b5 {[%clk 0:02:01]} 13. Bxh5 {[%clk 0:02:36]}  c4 {[%clk 0:01:40]} 14. Be2 {[%clk 0:02:10]}  Be6 {[%clk 0:01:39]} 15. h5 {[%clk 0:02:02]}  Nb4 {[%clk 0:01:38]} 16. a3 {[%clk 0:01:58]}  Nxc2 {[%clk 0:01:29]} 17. bxc4 {[%clk 0:01:44]}  bxc4 {[%clk 0:00:51]} 18. Kxc2 {[%clk 0:01:38]}  Qa4+ {[%clk 0:00:46]} 19. Kc1 {[%clk 0:01:34]}  Rab8 {[%clk 0:00:46]} 20. h6 {[%clk 0:00:57]}  Rxb2 {[%clk 0:00:39]} 21. Kxb2 {[%clk 0:00:54]}  Rb8+ {[%clk 0:00:39]} 22. Kc1 {[%clk 0:00:16]}  Qb5 {[%clk 0:00:39]} 23. Qc3 {[%clk 0:00:14]}  Qb1# {[%clk 0:00:39]} 0-1


[Site "https://www.chess.com"]

[Event "Titled Tuesday Blitz March 08 Early 2022"]
[White "Tologon tegin, Semetei"]
[Black "Kosakowski, Jakub"]
[WhiteFideId "13800574"]
[BlackFideId "1185080"]
[WhiteElo "2258"]
[BlackElo "2476"]
[Result "1-0"]
[Round "10"]
[TimeControl "180+1"]
[Date "2022.03.08"]
[WhiteClock "0:00:04"]
[BlackClock "0:00:01"]

1. e4 {[%clk 0:03:00]}  Nf6 {[%clk 0:02:52]} 2. e5 {[%clk 0:03:00]}  Nd5 {[%clk 0:02:52]} 3. d4 {[%clk 0:03:01]}  Nb6 {[%clk 0:02:52]} 4. Nf3 {[%clk 0:03:01]}  d5 {[%clk 0:02:53]} 5. h3 {[%clk 0:02:59]}  Bf5 {[%clk 0:02:50]} 6. Be3 {[%clk 0:02:42]}  e6 {[%clk 0:02:49]} 7. Nbd2 {[%clk 0:02:40]}  Be7 {[%clk 0:02:45]} 8. a3 {[%clk 0:02:32]}  N8d7 {[%clk 0:02:28]} 9. c4 {[%clk 0:02:27]}  dxc4 {[%clk 0:02:23]} 10. Nxc4 {[%clk 0:02:27]}  c6 {[%clk 0:02:19]} 11. Be2 {[%clk 0:02:25]}  Nxc4 {[%clk 0:02:17]} 12. Bxc4 {[%clk 0:02:25]}  Nb6 {[%clk 0:02:17]} 13. Bb3 {[%clk 0:02:17]}  O-O {[%clk 0:02:14]} 14. O-O {[%clk 0:02:17]}  Nd5 {[%clk 0:02:13]} 15. Rc1 {[%clk 0:02:08]}  Qb6 {[%clk 0:02:13]} 16. Nd2 {[%clk 0:02:00]}  Rfd8 {[%clk 0:02:10]} 17. Nc4 {[%clk 0:01:58]}  Qa6 {[%clk 0:02:10]} 18. Qf3 {[%clk 0:01:53]}  Rac8 {[%clk 0:02:04]} 19. Rfd1 {[%clk 0:01:52]}  Bg6 {[%clk 0:01:47]} 20. Qg3 {[%clk 0:01:50]}  b5 {[%clk 0:01:33]} 21. Nd6 {[%clk 0:01:49]}  Rb8 {[%clk 0:01:06]} 22. Bg5 {[%clk 0:01:43]}  f6 {[%clk 0:00:54]} 23. Bh4 {[%clk 0:01:43]}  Qb6 {[%clk 0:00:49]} 24. Bc2 {[%clk 0:00:51]}  Bxc2 {[%clk 0:00:42]} 25. Rxc2 {[%clk 0:00:51]}  Bxd6 {[%clk 0:00:39]} 26. exd6 {[%clk 0:00:51]}  Rd7 {[%clk 0:00:40]} 27. Rdc1 {[%clk 0:00:47]}  Rc8 {[%clk 0:00:38]} 28. Re2 {[%clk 0:00:43]}  Re8 {[%clk 0:00:35]} 29. Rc5 {[%clk 0:00:42]}  b4 {[%clk 0:00:27]} 30. a4 {[%clk 0:00:41]}  b3 {[%clk 0:00:27]} 31. a5 {[%clk 0:00:41]}  Qb4 {[%clk 0:00:26]} 32. Rxc6 {[%clk 0:00:39]}  Qxd4 {[%clk 0:00:26]} 33. Kh2 {[%clk 0:00:39]}  g5 {[%clk 0:00:25]} 34. Bxg5 {[%clk 0:00:34]}  fxg5 {[%clk 0:00:26]} 35. Qxg5+ {[%clk 0:00:34]}  Qg7 {[%clk 0:00:27]} 36. Qh4 {[%clk 0:00:15]}  Qg6 {[%clk 0:00:21]} 37. Re4 {[%clk 0:00:14]}  Rg7 {[%clk 0:00:20]} 38. Rg4 {[%clk 0:00:14]}  Qf6 {[%clk 0:00:20]} 39. Qg3 {[%clk 0:00:13]}  Qxb2 {[%clk 0:00:20]} 40. Rcc4 {[%clk 0:00:09]}  Rxg4 {[%clk 0:00:16]} 41. Rxg4+ {[%clk 0:00:10]}  Kh8 {[%clk 0:00:16]} 42. d7 {[%clk 0:00:10]}  Rd8 {[%clk 0:00:16]} 43. Qh4 {[%clk 0:00:10]}  Qf6 {[%clk 0:00:15]} 44. Qh5 {[%clk 0:00:08]}  Qe7 {[%clk 0:00:09]} 45. Qe5+ {[%clk 0:00:08]}  Nf6 {[%clk 0:00:09]} 46. Rf4 {[%clk 0:00:08]}  Kg7 {[%clk 0:00:09]} 47. Qg5+ {[%clk 0:00:08]}  Kf7 {[%clk 0:00:10]} 48. Qh5+ {[%clk 0:00:08]}  Kf8 {[%clk 0:00:09]} 49. Qh6+ {[%clk 0:00:08]}  Kg8 {[%clk 0:00:07]} 50. Rxf6 {[%clk 0:00:07]}  b2 {[%clk 0:00:07]} 51. Rxe6 {[%clk 0:00:05]}  Qxd7 {[%clk 0:00:03]} 52. Qg5+ {[%clk 0:00:04]}  Qg7 {[%clk 0:00:02]} 53. Qxd8+ {[%clk 0:00:04]}  Kf7 {[%clk 0:00:01]} 54. Qd7+ {[%clk 0:00:04]} 1-0


[Site "https://www.chess.com"]

[Event "Titled Tuesday Blitz March 08 Early 2022"]
[White "Van den Dikkenberg, Erik"]
[Black "Carre, Sylvain"]
[WhiteFideId "1005880"]
[BlackFideId "642118"]
[WhiteElo "2118"]
[BlackElo "2105"]
[Result "1-0"]
[Round "10"]
[TimeControl "180+1"]
[Date "2022.03.09"]
[WhiteClock "0:00:35"]
[BlackClock "0:00:18"]

1. e4 {[%clk 0:03:00]}  e5 {[%clk 0:02:59]} 2. Nf3 {[%clk 0:03:00]}  Nf6 {[%clk 0:02:52]} 3. Nxe5 {[%clk 0:02:59]}  d6 {[%clk 0:02:52]} 4. Nf3 {[%clk 0:02:59]}  Nxe4 {[%clk 0:02:50]} 5. Nc3 {[%clk 0:03:00]}  Nxc3 {[%clk 0:02:50]} 6. dxc3 {[%clk 0:03:00]}  Be7 {[%clk 0:02:50]} 7. Bf4 {[%clk 0:03:00]}  Nd7 {[%clk 0:02:50]} 8. Qd2 {[%clk 0:03:00]}  Nc5 {[%clk 0:02:49]} 9. O-O-O {[%clk 0:02:53]}  O-O {[%clk 0:02:46]} 10. h4 {[%clk 0:02:52]}  Bg4 {[%clk 0:02:47]} 11. Kb1 {[%clk 0:02:50]}  a5 {[%clk 0:02:45]} 12. Bd3 {[%clk 0:02:34]}  Nxd3 {[%clk 0:02:44]} 13. Qxd3 {[%clk 0:02:32]}  Bxf3 {[%clk 0:02:43]} 14. Qxf3 {[%clk 0:02:31]}  c6 {[%clk 0:02:34]} 15. h5 {[%clk 0:02:28]}  d5 {[%clk 0:02:34]} 16. g4 {[%clk 0:02:26]}  Bg5 {[%clk 0:02:33]} 17. h6 {[%clk 0:02:16]}  Bxf4 {[%clk 0:02:02]} 18. hxg7 {[%clk 0:02:13]}  Bg5 {[%clk 0:01:08]} 19. gxf8=Q+ {[%clk 0:02:10]}  Qxf8 {[%clk 0:01:09]} 20. Qf5 {[%clk 0:02:01]}  Qg7 {[%clk 0:01:09]} 21. f4 {[%clk 0:01:47]}  Be7 {[%clk 0:01:08]} 22. Rde1 {[%clk 0:01:42]}  Bf8 {[%clk 0:01:09]} 23. Qd7 {[%clk 0:01:35]}  Rb8 {[%clk 0:01:01]} 24. g5 {[%clk 0:01:27]}  a4 {[%clk 0:00:57]} 25. f5 {[%clk 0:01:22]}  Kh8 {[%clk 0:00:48]} 26. g6 {[%clk 0:01:19]}  fxg6 {[%clk 0:00:45]} 27. Qe6 {[%clk 0:01:06]}  g5 {[%clk 0:00:29]} 28. f6 {[%clk 0:01:04]}  Qg8 {[%clk 0:00:25]} 29. Qe5 {[%clk 0:00:50]}  Rd8 {[%clk 0:00:20]} 30. Rh5 {[%clk 0:00:43]}  h6 {[%clk 0:00:20]} 31. Reh1 {[%clk 0:00:42]}  Qf7 {[%clk 0:00:19]} 32. Rxg5 {[%clk 0:00:39]}  Bd6 {[%clk 0:00:18]} 33. Rxh6+ {[%clk 0:00:35]} 1-0


[Site "https://www.chess.com"]

[Event "Titled Tuesday Blitz March 08 Early 2022"]
[White "Vianello, Enrico"]
[Black "Necula, Iulian"]
[WhiteFideId "810738"]
[BlackFideId "1232380"]
[WhiteElo "2252"]
[BlackElo "1776"]
[Result "1-0"]
[Round "10"]
[TimeControl "180+1"]
[Date "2022.03.09"]
[WhiteClock "0:00:33"]
[BlackClock "0:00:04"]

1. c4 {[%clk 0:02:55]}  d6 {[%clk 0:02:59]} 2. d4 {[%clk 0:02:52]}  f5 {[%clk 0:02:58]} 3. Nc3 {[%clk 0:02:49]}  Nf6 {[%clk 0:02:59]} 4. g3 {[%clk 0:02:44]}  g6 {[%clk 0:02:58]} 5. Nh3 {[%clk 0:02:45]}  Bg7 {[%clk 0:02:58]} 6. Bg2 {[%clk 0:02:45]}  O-O {[%clk 0:02:57]} 7. O-O {[%clk 0:02:44]}  c6 {[%clk 0:02:57]} 8. Qc2 {[%clk 0:02:43]}  e5 {[%clk 0:02:56]} 9. dxe5 {[%clk 0:02:42]}  dxe5 {[%clk 0:02:56]} 10. e4 {[%clk 0:02:43]}  Na6 {[%clk 0:02:51]} 11. exf5 {[%clk 0:02:18]}  Bxf5 {[%clk 0:02:47]} 12. Qe2 {[%clk 0:02:14]}  Nb4 {[%clk 0:02:31]} 13. Rd1 {[%clk 0:02:10]}  Qe7 {[%clk 0:02:26]} 14. Be3 {[%clk 0:02:02]}  Nc2 {[%clk 0:02:06]} 15. Rac1 {[%clk 0:02:01]}  Nxe3 {[%clk 0:02:05]} 16. Qxe3 {[%clk 0:02:02]}  Qb4 {[%clk 0:01:44]} 17. b3 {[%clk 0:01:55]}  Ng4 {[%clk 0:01:30]} 18. Qe2 {[%clk 0:01:46]}  Bh6 {[%clk 0:01:29]} 19. f4 {[%clk 0:01:34]}  Rae8 {[%clk 0:01:15]} 20. Qb2 {[%clk 0:01:22]}  Qc5+ {[%clk 0:01:05]} 21. Kh1 {[%clk 0:01:20]}  exf4 {[%clk 0:01:03]} 22. gxf4 {[%clk 0:01:20]}  Ne3 {[%clk 0:00:52]} 23. Na4 {[%clk 0:01:18]}  Qe7 {[%clk 0:00:46]} 24. Re1 {[%clk 0:01:17]}  Bg7 {[%clk 0:00:39]} 25. Qf2 {[%clk 0:01:15]}  Bd4 {[%clk 0:00:39]} 26. Qg3 {[%clk 0:01:10]}  Qg7 {[%clk 0:00:37]} 27. Nc3 {[%clk 0:00:55]}  Nxg2 {[%clk 0:00:36]} 28. Kxg2 {[%clk 0:00:50]}  Be4+ {[%clk 0:00:36]} 29. Nxe4 {[%clk 0:00:48]}  Bb2 {[%clk 0:00:16]} 30. Rcd1 {[%clk 0:00:48]}  Ba3 {[%clk 0:00:10]} 31. Nhf2 {[%clk 0:00:47]}  h6 {[%clk 0:00:06]} 32. Kh1 {[%clk 0:00:42]}  Be7 {[%clk 0:00:04]} 33. Rg1 {[%clk 0:00:42]}  g5 {[%clk 0:00:04]} 34. fxg5 {[%clk 0:00:41]}  hxg5 {[%clk 0:00:04]} 35. Ng4 {[%clk 0:00:39]}  Rf4 {[%clk 0:00:02]} 36. Nef2 {[%clk 0:00:38]}  Bf6 {[%clk 0:00:01]} 37. Nxf6+ {[%clk 0:00:36]}  Qxf6 {[%clk 0:00:02]} 38. Qxg5+ {[%clk 0:00:36]}  Qxg5 {[%clk 0:00:03]} 39. Rxg5+ {[%clk 0:00:36]}  Kf7 {[%clk 0:00:03]} 40. Nh3 {[%clk 0:00:35]}  Rf3 {[%clk 0:00:02]} 41. Rg3 {[%clk 0:00:34]}  Rxg3 {[%clk 0:00:01]} 42. hxg3 {[%clk 0:00:35]}  Re2 {[%clk 0:00:02]} 43. Rf1+ {[%clk 0:00:35]}  Kg6 {[%clk 0:00:01]} 44. Rf2 {[%clk 0:00:35]}  Rxf2 {[%clk 0:00:01]} 45. Nxf2 {[%clk 0:00:35]}  Kg5 {[%clk 0:00:02]} 46. Kg2 {[%clk 0:00:35]}  Kf5 {[%clk 0:00:02]} 47. Kf3 {[%clk 0:00:35]}  a6 {[%clk 0:00:02]} 48. g4+ {[%clk 0:00:35]}  Kf6 {[%clk 0:00:02]} 49. Kf4 {[%clk 0:00:36]}  b6 {[%clk 0:00:02]} 50. g5+ {[%clk 0:00:36]}  Kg6 {[%clk 0:00:03]} 51. Ne4 {[%clk 0:00:35]}  c5 {[%clk 0:00:04]} 52. Ke5 {[%clk 0:00:35]}  b5 {[%clk 0:00:02]} 53. Kd5 {[%clk 0:00:33]}  bxc4 {[%clk 0:00:02]} 54. bxc4 {[%clk 0:00:33]}  Kf5 {[%clk 0:00:03]} 55. Kxc5 {[%clk 0:00:33]}  Kxe4 {[%clk 0:00:03]} 56. g6 {[%clk 0:00:33]}  Kf5 {[%clk 0:00:04]} 57. g7 {[%clk 0:00:33]} 1-0


[Site "https://www.chess.com"]

[Event "Titled Tuesday Blitz March 08 Early 2022"]
[White "Voit, Daria"]
[Black "Mayaud, Raphael"]
[WhiteFideId "4182146"]
[BlackFideId "627151"]
[WhiteElo "2323"]
[BlackElo "2191"]
[Result "1-0"]
[Round "10"]
[TimeControl "180+1"]
[Date "2022.03.09"]
[WhiteClock "0:01:05"]
[BlackClock "0:00:05"]

1. d4 {[%clk 0:02:57]}  Nf6 {[%clk 0:02:55]} 2. Bg5 {[%clk 0:02:57]}  Ne4 {[%clk 0:02:53]} 3. Bf4 {[%clk 0:02:56]}  d5 {[%clk 0:02:52]} 4. f3 {[%clk 0:02:54]}  Nf6 {[%clk 0:02:52]} 5. Nc3 {[%clk 0:02:54]}  c5 {[%clk 0:02:36]} 6. dxc5 {[%clk 0:02:48]}  a6 {[%clk 0:02:19]} 7. e3 {[%clk 0:02:19]}  Nc6 {[%clk 0:02:13]} 8. a3 {[%clk 0:02:18]}  e5 {[%clk 0:02:12]} 9. Bg5 {[%clk 0:02:17]}  Bxc5 {[%clk 0:01:35]} 10. b4 {[%clk 0:02:07]}  Nxb4 {[%clk 0:01:09]} 11. axb4 {[%clk 0:01:53]}  Bxb4 {[%clk 0:01:09]} 12. Ne2 {[%clk 0:01:53]}  d4 {[%clk 0:01:09]} 13. exd4 {[%clk 0:01:41]}  exd4 {[%clk 0:01:09]} 14. Ra4 {[%clk 0:01:37]}  Bxc3+ {[%clk 0:00:57]} 15. Nxc3 {[%clk 0:01:37]}  dxc3 {[%clk 0:00:58]} 16. Bb5+ {[%clk 0:01:33]}  Bd7 {[%clk 0:00:29]} 17. Bxf6 {[%clk 0:01:18]}  gxf6 {[%clk 0:00:13]} 18. Re4+ {[%clk 0:01:17]}  Kf8 {[%clk 0:00:13]} 19. Qd6+ {[%clk 0:01:11]}  Kg7 {[%clk 0:00:10]} 20. Bxd7 {[%clk 0:01:11]}  Rf8 {[%clk 0:00:06]} 21. O-O {[%clk 0:01:09]}  Qa5 {[%clk 0:00:05]} 22. Rg4+ {[%clk 0:01:05]} 1-0


[Site "https://www.chess.com"]

[Event "Titled Tuesday Blitz March 08 Early 2022"]
[White "Weetik, Vjacheslav"]
[Black "Kirillov, Dmitry"]
[WhiteFideId "4153472"]
[BlackFideId "34180572"]
[WhiteElo "2469"]
[BlackElo "2076"]
[Result "1-0"]
[Round "10"]
[TimeControl "180+1"]
[Date "2022.03.09"]
[WhiteClock "0:00:16"]
[BlackClock "0:00:01"]

1. c3 {[%clk 0:02:49]}  d5 {[%clk 0:02:57]} 2. d3 {[%clk 0:02:49]}  e5 {[%clk 0:02:55]} 3. h3 {[%clk 0:02:48]}  Bd6 {[%clk 0:02:55]} 4. Nd2 {[%clk 0:02:48]}  c6 {[%clk 0:02:51]} 5. g4 {[%clk 0:02:48]}  h5 {[%clk 0:02:50]} 6. g5 {[%clk 0:02:45]}  Ne7 {[%clk 0:02:48]} 7. h4 {[%clk 0:02:44]}  Nd7 {[%clk 0:02:41]} 8. e4 {[%clk 0:02:42]}  Nf8 {[%clk 0:02:39]} 9. Ne2 {[%clk 0:02:40]}  Neg6 {[%clk 0:02:38]} 10. Bg2 {[%clk 0:02:36]}  dxe4 {[%clk 0:02:30]} 11. Nxe4 {[%clk 0:02:34]}  Bg4 {[%clk 0:02:24]} 12. Qb3 {[%clk 0:02:32]}  Rb8 {[%clk 0:01:59]} 13. Be3 {[%clk 0:02:28]}  b6 {[%clk 0:01:39]} 14. f3 {[%clk 0:01:49]}  Be6 {[%clk 0:01:10]} 15. Qa4 {[%clk 0:01:48]}  Bd5 {[%clk 0:00:49]} 16. d4 {[%clk 0:01:38]}  Ne6 {[%clk 0:00:35]} 17. O-O-O {[%clk 0:01:32]}  b5 {[%clk 0:00:31]} 18. Qc2 {[%clk 0:01:31]}  O-O {[%clk 0:00:19]} 19. Rhg1 {[%clk 0:01:16]}  Nef4 {[%clk 0:00:17]} 20. Nxf4 {[%clk 0:01:15]}  exf4 {[%clk 0:00:14]} 21. Bf2 {[%clk 0:01:10]}  Be7 {[%clk 0:00:09]} 22. a3 {[%clk 0:00:52]}  a5 {[%clk 0:00:08]} 23. Rde1 {[%clk 0:00:45]}  Be6 {[%clk 0:00:07]} 24. Nc5 {[%clk 0:00:42]}  Bxc5 {[%clk 0:00:07]} 25. dxc5 {[%clk 0:00:42]}  b4 {[%clk 0:00:07]} 26. cxb4 {[%clk 0:00:37]}  axb4 {[%clk 0:00:08]} 27. a4 {[%clk 0:00:37]}  b3 {[%clk 0:00:07]} 28. Qc3 {[%clk 0:00:38]}  Re8 {[%clk 0:00:02]} 29. Rd1 {[%clk 0:00:36]}  Qc7 {[%clk 0:00:01]} 30. Rd6 {[%clk 0:00:36]}  Ra8 {[%clk 0:00:01]} 31. Kd2 {[%clk 0:00:16]}  Bd5 {[%clk 0:00:02]} 32. Re1 {[%clk 0:00:14]}  Rxe1 {[%clk 0:00:01]} 33. Kxe1 {[%clk 0:00:15]}  Rxa4 {[%clk 0:00:01]} 34. Bd4 {[%clk 0:00:16]} 1-0


[Site "https://www.chess.com"]